fUST/lending_fUST_20250208
["ID","MTS","AMOUNT","RATE_DAILY","PERIOD"]
[352200808,1738993857364,-500.0,0.00011369,2]
[352200809,1738993857377,-500.0,0.00011369,2]
[352200810,1738993857389,-500.0,0.00011369,2]
[352200811,1738993857401,-500.0,0.00011369,2]
[352200812,1738993857414,-500.0,0.00011369,2]
[352200813,1738993857425,-500.0,0.00011369,2]
[352200814,1738993857437,-543.26,0.00011369,2]
[352200815,1738993857451,-198.18318,0.00011369,2]
[352200816,1738993857463,-500.0,0.00011369,2]
[352200817,1738993857476,-198.18318,0.00011369,2]
[352200818,1738993857488,-501.89730355,0.00011369,2]
[352200819,1738993857500,-500.0,0.00011369,2]
[352200820,1738993857512,-500.0,0.00011369,2]
[352200821,1738993857526,-500.0,0.00011369,2]
[352200822,1738993857538,-256.563099,0.00011369,2]
[352200823,1738993857551,-500.0,0.00011369,2]
[352200824,1738993857564,-256.563099,0.00011369,2]
[352200825,1738993857576,-500.0,0.00011369,2]
[352200826,1738993857588,-500.0,0.00011369,2]
[352200827,1738993857601,-964.31,0.00011369,2]
[352200828,1738993857614,-500.0,0.00011369,2]
[352200829,1738993857630,-155.275993,0.00011369,2]
[352200830,1738993857643,-500.0,0.00011369,2]
[352200831,1738993857656,-500.0,0.00011369,2]
[352200832,1738993857668,-500.0,0.00011369,2]
[352200833,1738993857681,-155.275993,0.00011369,2]
[352200834,1738993857695,-500.0,0.00011369,2]
[352200835,1738993857712,-1086.18,0.00011369,2]
[352200836,1738993857724,-500.0,0.00011369,2]
[352200837,1738993857741,-500.0,0.00011369,2]
[352200838,1738993857754,-624.27817249,0.00011369,2]
[352200839,1738993857767,-500.0,0.00011369,2]
[352200840,1738993857781,-500.0,0.00011369,2]
[352200841,1738993857794,-500.0,0.00011369,2]
[352200842,1738993857807,-500.0,0.00011369,2]
[352200843,1738993857819,-500.0,0.00011369,2]
[352200844,1738993857832,-413.58964998,0.00011369,2]
[352200845,1738993857844,-339.41647117,0.00011369,2]
[352200846,1738993857858,-500.0,0.00011369,2]
[352200847,1738993857872,-411.03013076,0.00011369,2]
[352200848,1738993858408,-242.60986924,0.00011369,2]
[352200849,1738993858418,-500.0,0.00011369,2]
[352200850,1738993858427,-47.326215,0.00011369,2]
[352200851,1738993858438,-454.22997676,0.00011369,2]
[352200852,1738993858447,-500.0,0.00011369,2]
[352200853,1738993858457,-24.52397599,0.00011369,2]
[352200854,1738993858469,-367.54681072,0.00011369,2]
[352200855,1738993858479,-176.11799159,0.00011369,2]
[352200856,1738993858488,-500.0,0.00011369,2]
[352200857,1738993858498,-500.0,0.00011369,2]
[352200858,1738993858507,-823.7,0.00011369,2]
[352200859,1738993858517,-122.15050169,0.00011369,2]
[352200860,1738993858529,-382.44493757,0.00011369,2]
[352200861,1738993858540,-500.0,0.00011369,2]
[352200862,1738993858549,-500.0,0.00011369,2]
[352200863,1738993858559,-429.88620158,0.00011369,2]
[352200864,1738993858570,-17.6773216,0.00011369,2]
[352200865,1738993858580,-151.0,0.00011369,2]
[352200866,1738993858590,-500.0,0.00011369,2]
[352200867,1738993858599,-104.8970316,0.00011369,2]
[352200868,1738993858611,-395.1029684,0.00011369,2]
[352200869,1738993858621,-18.1970366,0.00011369,2]
[352200870,1738993858632,-481.8029634,0.00011369,2]
[352200871,1738993858642,-93.8845342,0.00011369,2]
[352200872,1738993858653,-406.1154658,0.00011369,2]
[352200873,1738993858663,-500.0,0.00011369,2]
[352200874,1738993858672,-500.0,0.00011369,2]
[352200875,1738993858681,-503.62342582,0.00011369,2]
[352200876,1738993858691,-500.0,0.00011369,2]
[352200877,1738993858706,-977.11,0.00011369,2]
[352200878,1738993858715,-500.0,0.00011369,2]
[352200879,1738993858725,-500.0,0.00011369,2]
[352200880,1738993858734,-500.0,0.00011369,2]
[352200881,1738993858747,-500.0,0.00011369,2]
[352200882,1738993858757,-500.0,0.00011369,2]
[352200883,1738993858766,-500.0,0.00011369,2]
[352200884,1738993858776,-500.0,0.00011369,2]
[352200885,1738993858786,-500.0,0.00011369,2]
[352200886,1738993858796,-500.0,0.00011369,2]
[352200887,1738993858805,-500.0,0.00011369,2]
[352200888,1738993858815,-504.96310756,0.00011369,2]
[352200889,1738993858824,-500.0,0.00011369,2]
[352200890,1738993858833,-500.0,0.00011369,2]
[352200891,1738993858842,-1328.49,0.00011369,2]
[352200892,1738993858852,-502.50574112,0.00011369,2]
[352200893,1738993858861,-500.0,0.00011369,2]
[352200894,1738993858870,-381.18850077,0.00011369,2]
[352200895,1738993858879,-500.0,0.00011369,2]
[352200896,1738993858888,-500.0,0.00011369,2]
[352200897,1738993858898,-1361.06,0.00011369,2]
[352200898,1738993858907,-504.27024746,0.00011369,2]
[352200899,1738993858917,-500.0,0.00011369,2]
[352200900,1738993858926,-503.72872154,0.00011369,2]
[352200901,1738993858935,-218.39143941,0.00011369,2]
[352200902,1738993858945,-601.41,0.00011369,2]
[352200903,1738993858954,-500.0,0.00011369,2]
[352200904,1738993858964,-500.0,0.00011369,2]
[352200905,1738993858973,-151.0,0.00011369,2]
[352200906,1738993858982,-500.0,0.00011369,2]
[352200907,1738993858992,-151.0,0.00011369,2]
[352200908,1738993859001,-501.91577813,0.00011369,2]
[352200909,1738993859011,-542.140726,0.00011369,2]
[352200910,1738993859020,-500.0,0.00011369,2]
[352200911,1738993859030,-542.140726,0.00011369,2]
[352200912,1738993859039,-542.140726,0.00011369,2]
[352200913,1738993859048,-542.140726,0.00011369,2]
[352200914,1738993859057,-76.13586589,0.00011369,2]
[352200915,1738993859071,-426.13617459,0.00011369,2]
[352200916,1738993859080,-504.71221909,0.00011369,2]
[352200917,1738993859089,-0.81160632,0.00011369,2]
[352200918,1738993859172,-500.0,0.00010958,2]
[352200919,1738993859182,-12455.53980772,0.00011071,2]
[352200920,1738993859191,-12455.53980772,0.00011366,2]
[352200921,1738993859201,-499.18839368,0.00011369,2]
[352200922,1738993859210,-500.0,0.00011369,2]
[352200923,1738993859220,-500.0,0.00011369,2]
[352200924,1738993859230,-500.0,0.00011369,2]
[352200925,1738993859239,-500.0,0.00011369,2]
[352200926,1738993859249,-500.0,0.00011369,2]
[352200927,1738993859258,-500.0,0.00011369,2]
[352200928,1738993859268,-500.0,0.00011369,2]
[352200929,1738993859277,-500.0,0.00011369,2]
[352200930,1738993859287,-500.0,0.00011369,2]
[352200931,1738993859298,-935.34,0.00011369,2]
[352200932,1738993859310,-500.0,0.00011369,2]
[352200933,1738993859323,-528.86,0.00011369,2]
[352200934,1738993859336,-500.0,0.00011369,2]
[352200935,1738993859347,-151.0,0.00011369,2]
[352200936,1738993859356,-151.0,0.00011369,2]
[352200937,1738993859365,-500.0,0.00011369,2]
[352200938,1738993859374,-400.84424532,0.00011369,2]
[352200939,1738993859384,-427.204815,0.00011369,2]
[352200940,1738993859394,-500.0,0.00011369,2]
[352200941,1738993859403,-500.0,0.00011369,2]
[352200942,1738993859413,-1358.1,0.00011369,2]
[352200943,1738993859423,-500.0,0.00011369,2]
[352200944,1738993859433,-427.204815,0.00011369,2]
[352200945,1738993859442,-500.0,0.00011369,2]
[352200946,1738993859452,-507.0558345,0.00011369,2]
[352200947,1738993859461,-500.0,0.00011369,2]
[352200948,1738993859471,-678.56,0.00011369,2]
[352200949,1738993859479,-500.0,0.00011369,2]
[352200950,1738993859489,-2661.34,0.00011369,2]
[352200951,1738993859498,-500.0,0.00011369,2]
[352200952,1738993859507,-510.64813425,0.00011369,2]
[352200953,1738993859516,-500.0,0.00011369,2]
[352200954,1738993859526,-12432.98,0.00011369,2]
[352200955,1738993859535,-528.73043669,0.00011369,2]
[352200956,1738993859544,-1184.83,0.00011369,2]
[352200957,1738993859553,-256.2899064,0.00011369,2]
[352200958,1738993859562,-500.0,0.00011369,2]
[352200959,1738993859571,-665.95,0.00011369,2]
[352200960,1738993859592,-500.0,0.00011369,2]
[352200961,1738993859604,-2542.91,0.00011369,2]
[352200962,1738993859614,-500.0,0.00011369,2]
[352200963,1738993859625,-2497.96,0.00011369,2]
[352200964,1738993859635,-500.0,0.00011369,2]
[352200965,1738993859646,-409.18946355,0.00011369,2]
[352200966,1738993859656,-500.0,0.00011369,2]
[352200967,1738993859666,-500.0,0.00011369,2]
[352200968,1738993859675,-983.78,0.00011369,2]
[352200969,1738993859686,-1046.93,0.00011369,2]
[352200970,1738993859698,-1472.79,0.00011369,2]
[352200971,1738993859709,-151.0,0.00011369,2]
[352200972,1738993859720,-500.0,0.00011369,2]
[352200973,1738993859730,-500.0,0.00011369,2]
[352200974,1738993859740,-626.97894453,0.00011369,2]
[352200975,1738993859751,-501.45372425,0.00011369,2]
[352200976,1738993859761,-500.0,0.00011369,2]
[352200977,1738993859773,-151.0,0.00011369,2]
[352200978,1738993859784,-365.37301356,0.00011369,2]
[352200979,1738993859794,-500.0,0.00011369,2]
[352200980,1738993859805,-500.0,0.00011369,2]
[352200981,1738993859815,-540.77,0.00011369,2]
[352200982,1738993859826,-500.0,0.00011369,2]
[352200983,1738993859836,-500.0,0.00011369,2]
[352200984,1738993859846,-503.08147711,0.00011369,2]
[352200985,1738993859856,-620.65,0.00011369,2]
[352200986,1738993859866,-598.0,0.00011369,2]
[352200987,1738993859876,-500.0,0.00011369,2]
[352200988,1738993859886,-500.0,0.00011369,2]
[352200989,1738993859895,-500.0,0.00011369,2]
[352200990,1738993859905,-551.01,0.00011369,2]
[352200991,1738993859915,-500.0,0.00011369,2]
[352200992,1738993859926,-500.0,0.00011369,2]
[352200993,1738993859936,-500.0,0.00011369,2]
[352200994,1738993859945,-500.0,0.00011369,2]
[352200995,1738993859955,-500.0,0.00011369,2]
[352200996,1738993859965,-500.0,0.00011369,2]
[352200997,1738993859975,-1344.51,0.00011369,2]
[352200998,1738993859984,-500.0,0.00011369,2]
[352200999,1738993859994,-942.94,0.00011369,2]
[352201000,1738993860003,-3204.27,0.00011369,2]
[352201001,1738993860013,-500.0,0.00011369,2]
[352201002,1738993860024,-573.40769173,0.00011369,2]
[352201003,1738993860035,-500.0,0.00011369,2]
[352201004,1738993860045,-2795.78,0.00011369,2]
[352201005,1738993860055,-500.0,0.00011369,2]
[352201006,1738993860066,-500.0,0.00011369,2]
[352201007,1738993860076,-500.0,0.00011369,2]
[352201008,1738993860087,-500.0,0.00011369,2]
[352201009,1738993860097,-500.0,0.00011369,2]
[352201010,1738993860108,-1146.43,0.00011369,2]
[352201011,1738993860118,-42319.38,0.00011369,2]
[352201012,1738993860128,-500.0,0.00011369,2]
[352201013,1738993860139,-423.42867661,0.00011369,2]
[352201014,1738993860149,-500.0,0.00011369,2]
[352201015,1738993860159,-500.0,0.00011369,2]
[352201016,1738993860170,-754.45,0.00011369,2]
[352201017,1738993860179,-500.0,0.00011369,2]
[352201018,1738993860190,-1168.73,0.00011369,2]
[352201019,1738993860200,-500.0,0.00011369,2]
[352201020,1738993860211,-1481.21,0.00011369,2]
[352201021,1738993860221,-210.081994,0.00011369,2]
[352201022,1738993860231,-291.68951805,0.00011369,2]
[352201023,1738993860241,-500.0,0.00011369,2]
[352201024,1738993860251,-1538.59,0.00011369,2]
[352201025,1738993860261,-500.0,0.00011369,2]
[352201026,1738993860271,-500.0,0.00011369,2]
[352201027,1738993860281,-500.0,0.00011369,2]
[352201028,1738993860291,-151.0,0.00011369,2]
[352201029,1738993860301,-210.081994,0.00011369,2]
[352201030,1738993860312,-151.0,0.00011369,2]
[352201031,1738993860322,-500.0,0.00011369,2]
[352201032,1738993860332,-11667.0953054,0.00011369,2]
[352201033,1738993860348,-403.4146946,0.00011369,2]
[352201034,1738993860358,-502.10651484,0.00011369,2]
[352201035,1738993860368,-589.6555947,0.00011369,2]
[352201036,1738993860378,-500.0,0.00011369,2]
[352201037,1738993860388,-500.0,0.00011369,2]
[352201038,1738993860398,-151.0,0.00011369,2]
[352201039,1738993860408,-509.49316727,0.00011369,2]
[352201040,1738993860419,-151.0,0.00011369,2]
[352201041,1738993860430,-500.0,0.00011369,2]
[352201042,1738993860440,-954.61,0.00011369,2]
[352201043,1738993860450,-500.0,0.00011369,2]
[352201044,1738993860460,-503.1296416,0.00011369,2]
[352201045,1738993860470,-839.26,0.00011369,2]
[352201046,1738993860480,-500.0,0.00011369,2]
[352201047,1738993860489,-1786.18,0.00011369,2]
[352201048,1738993860499,-500.0,0.00011369,2]
[352201049,1738993860508,-500.0,0.00011369,2]
[352201050,1738993860518,-506.12495643,0.00011369,2]
[352201051,1738993860528,-500.0,0.00011369,2]
[352201052,1738993860537,-320.47846163,0.00011369,2]
[352201053,1738993860547,-500.0,0.00011369,2]
[352201054,1738993860556,-500.0,0.00011369,2]
[352201055,1738993860566,-500.0,0.00011369,2]
[352201056,1738993860576,-1275.28,0.00011369,2]
[352201057,1738993860585,-500.0,0.00011369,2]
[352201058,1738993860594,-364.180945,0.00011369,2]
[352201059,1738993860604,-500.0,0.00011369,2]
[352201060,1738993860614,-500.0,0.00011369,2]
[352201061,1738993860623,-635.87,0.00011369,2]
[352201062,1738993860632,-500.0,0.00011369,2]
[352201063,1738993860642,-500.0,0.00011369,2]
[352201064,1738993860651,-500.0,0.00011369,2]
[352201065,1738993860660,-2134.17404943,0.00011369,2]
[352201066,1738993860979,-500.0,0.00010848,2]
[352201067,1738993860991,-4500.0,0.00010848,2]
[352201068,1738993861001,-500.0,0.00010958,2]
[352201069,1738993861011,-500.0,0.00010958,2]
[352201070,1738993861020,-164.05,0.00010959,2]
[352201071,1738993861029,-500.0,0.00011095,2]
[352201072,1738993861039,-500.0,0.00011232,2]
[352201073,1738993861050,-366.45595057,0.00011369,2]
[352201074,1738993861060,-503.56031213,0.00011369,2]
[352201075,1738993861071,-501.18953021,0.00011369,2]
[352201076,1738993861080,-500.0,0.00011369,2]
[352201077,1738993861090,-500.0,0.00011369,2]
[352201078,1738993861099,-5278.92,0.00011369,2]
[352201079,1738993861290,-500.0,0.00011369,2]
[352201080,1738993861311,-500.0,0.00011369,2]
[352201081,1738993861320,-574.19,0.00011369,2]
[352201082,1738993861330,-1267.7,0.00011369,2]
[352201083,1738993861339,-500.0,0.00011369,2]
[352201084,1738993861349,-500.0,0.00011369,2]
[352201085,1738993861358,-875.37,0.00011369,2]
[352201086,1738993861367,-603.69,0.00011369,2]
[352201087,1738993861378,-2662.22,0.00011369,2]
[352201088,1738993861388,-500.0,0.00011369,2]
[352201089,1738993861399,-507.93299252,0.00011369,2]
[352201090,1738993861408,-500.0,0.00011369,2]
[352201091,1738993861418,-500.0,0.00011369,2]
[352201092,1738993861427,-3061.67,0.00011369,2]
[352201093,1738993861437,-596.69,0.00011369,2]
[352201094,1738993861446,-500.0,0.00011369,2]
[352201095,1738993861456,-500.0,0.00011369,2]
[352201096,1738993861466,-500.0,0.00011369,2]
[352201097,1738993861475,-500.0,0.00011369,2]
[352201098,1738993861484,-365.39215376,0.00011369,2]
[352201099,1738993861494,-3623.61,0.00011369,2]
[352201100,1738993861503,-620.76,0.00011369,2]
[352201101,1738993861513,-1435.97,0.00011369,2]
[352201102,1738993861523,-541.47714576,0.00011369,2]
[352201103,1738993861532,-500.0,0.00011369,2]
[352201104,1738993861541,-500.0,0.00011369,2]
[352201105,1738993861550,-22.05728673,0.00011369,2]
[352201106,1738993999519,3000.0,0.00014,30]
[352201107,1738993999905,3000.0,0.0001401,30]
[352201108,1738994000294,3000.0,0.0001402,30]
[352201109,1738994231261,362.60216465,0.00018999,120]
[352201173,1738995032850,-165.68827188,9.855e-05,5]
[352201176,1738995032860,-2401.46172812,0.00010017,2]
[352201238,1738995038543,-2598.53827188,0.00010017,2]
[352201239,1738995038552,-300.0,0.00010118,2]
[352201240,1738995038561,-17917.5243111,0.00010119,2]
[352201241,1738995038571,-286.19476611,0.00010857,2]
[352201242,1738995038579,-500.0,0.00010857,2]
[352201243,1738995038588,-500.0,0.00010857,2]
[352201244,1738995038598,-379.66517905,0.00010857,2]
[352201245,1738995038608,-180.92926019,0.00010858,2]
[352201246,1738995038617,-16581.08519484,0.00010858,2]
[352201247,1738995038626,-500.0,0.00010957,2]
[352201248,1738995038635,-389.0977696,0.00010957,2]
[352201249,1738995038643,-500.0,0.00010958,2]
[352201250,1738995038652,-500.0,0.00010958,2]
[352201251,1738995038660,-500.0,0.00010958,2]
[352201252,1738995038669,-500.64,0.00010958,2]
[352201253,1738995038677,-500.0,0.00010958,2]
[352201254,1738995038685,-500.0,0.00010958,2]
[352201255,1738995038694,-501.89730355,0.00010958,2]
[352201256,1738995038703,-500.0,0.00010958,2]
[352201257,1738995038712,-500.0,0.00010958,2]
[352201258,1738995038721,-500.0,0.00010958,2]
[352201259,1738995038731,-500.0,0.00010958,2]
[352201260,1738995038740,-500.0,0.00010958,2]
[352201261,1738995038749,-500.0,0.00010958,2]
[352201262,1738995038759,-500.0,0.00010958,2]
[352201263,1738995038768,-500.0,0.00010958,2]
[352201264,1738995038778,-500.0,0.00010958,2]
[352201265,1738995038789,-500.0,0.00010958,2]
[352201266,1738995038799,-500.0,0.00010958,2]
[352201267,1738995038808,-500.0,0.00010958,2]
[352201268,1738995038817,-500.0,0.00010958,2]
[352201269,1738995038827,-518.19188215,0.00010958,2]
[352201270,1738995038836,-500.0,0.00010958,2]
[352201271,1738995038845,-500.0,0.00010958,2]
[352201272,1738995038855,-500.87367359,0.00010958,2]
[352201273,1738995038865,-500.0,0.00010958,2]
[352201274,1738995038874,-500.0,0.00010958,2]
[352201275,1738995038885,-500.0,0.00010958,2]
[352201276,1738995038894,-500.0,0.00010958,2]
[352201277,1738995038903,-500.0,0.00010958,2]
[352201278,1738995038913,-500.0,0.00010958,2]
[352201279,1738995038922,-500.0,0.00010958,2]
[352201280,1738995038931,-500.0,0.00010958,2]
[352201281,1738995038940,-500.0,0.00010958,2]
[352201282,1738995038950,-500.0,0.00010958,2]
[352201283,1738995038959,-500.0,0.00010958,2]
[352201284,1738995038968,-500.0,0.00010958,2]
[352201285,1738995038978,-500.0,0.00010958,2]
[352201286,1738995038988,-500.0,0.00010958,2]
[352201287,1738995038997,-500.0,0.00010958,2]
[352201288,1738995039007,-502.04264711,0.00010958,2]
[352201289,1738995039016,-500.0,0.00010958,2]
[352201290,1738995039026,-500.0,0.00010958,2]
[352201291,1738995039037,-500.0,0.00010958,2]
[352201292,1738995039046,-500.0,0.00010958,2]
[352201293,1738995039055,-500.0,0.00010958,2]
[352201294,1738995039065,-500.0,0.00010958,2]
[352201295,1738995039074,-500.0,0.00010958,2]
[352201296,1738995039083,-500.0,0.00010958,2]
[352201297,1738995039093,-500.0,0.00010958,2]
[352201298,1738995039102,-525.14593161,0.00010958,2]
[352201299,1738995039112,-409.18370405,0.00010958,2]
[352201300,1738995039122,-500.0,0.00010958,2]
[352201301,1738995039131,-500.0,0.00010958,2]
[352201302,1738995039141,-500.0,0.00010958,2]
[352201303,1738995039150,-500.0,0.00010958,2]
[352201304,1738995039160,-503.55234073,0.00010958,2]
[352201305,1738995039171,-500.0,0.00010958,2]
[352201306,1738995039180,-507.58731535,0.00010958,2]
[352201307,1738995039190,-500.0,0.00010958,2]
[352201308,1738995039199,-500.0,0.00010958,2]
[352201309,1738995039210,-503.59341216,0.00010958,2]
[352201310,1738995039219,-500.0,0.00010958,2]
[352201311,1738995039229,-501.21147551,0.00010958,2]
[352201312,1738995039239,-500.0,0.00010958,2]
[352201313,1738995039249,-500.0,0.00010958,2]
[352201314,1738995039258,-500.0,0.00010958,2]
[352201315,1738995039267,-500.0,0.00010958,2]
[352201316,1738995039277,-501.36615242,0.00010958,2]
[352201317,1738995039289,-500.0,0.00010958,2]
[352201318,1738995039299,-500.0,0.00010958,2]
[352201319,1738995039309,-500.0,0.00010958,2]
[352201320,1738995039322,-260.66385936,0.00010958,2]
[352201321,1738995039341,-500.0,0.00010958,2]
[352201322,1738995039351,-500.0,0.00010958,2]
[352201323,1738995039360,-500.0,0.00010958,2]
[352201324,1738995039369,-500.0,0.00010958,2]
[352201325,1738995039378,-500.0,0.00010958,2]
[352201326,1738995039388,-500.0,0.00010958,2]
[352201327,1738995039397,-500.0,0.00010958,2]
[352201328,1738995039406,-500.0,0.00010958,2]
[352201329,1738995039415,-500.0,0.00010958,2]
[352201330,1738995039425,-500.0,0.00010958,2]
[352201331,1738995039434,-500.0,0.00010958,2]
[352201332,1738995039443,-502.31564914,0.00010958,2]
[352201333,1738995039453,-315.03493391,0.00010958,2]
[352201334,1738995039462,-502.1579732,0.00010958,2]
[352201335,1738995039471,-500.0,0.00010958,2]
[352201336,1738995039481,-500.0,0.00010958,2]
[352201337,1738995039490,-500.0,0.00010958,2]
[352201338,1738995039500,-500.0,0.00010958,2]
[352201339,1738995039509,-597.37550975,0.00010958,2]
[352201340,1738995039519,-500.0,0.00010958,2]
[352201341,1738995039528,-500.0,0.00010958,2]
[352201342,1738995039539,-500.0,0.00010958,2]
[352201343,1738995039548,-500.0,0.00010958,2]
[352201344,1738995039558,-500.0,0.00010958,2]
[352201345,1738995039567,-500.0,0.00010958,2]
[352201346,1738995039577,-501.30350988,0.00010958,2]
[352201347,1738995039586,-500.0,0.00010958,2]
[352201348,1738995039596,-500.0,0.00010958,2]
[352201349,1738995039605,-605.24,0.00010958,2]
[352201350,1738995039615,-500.0,0.00010958,2]
[352201351,1738995039624,-500.0,0.00010958,2]
[352201352,1738995039633,-500.0,0.00010958,2]
[352201353,1738995039643,-500.0,0.00010958,2]
[352201354,1738995039652,-500.0,0.00010958,2]
[352201355,1738995039661,-500.0,0.00010958,2]
[352201356,1738995039671,-500.0,0.00010958,2]
[352201357,1738995039681,-500.0,0.00010958,2]
[352201358,1738995039690,-500.0,0.00010958,2]
[352201359,1738995039700,-500.0,0.00010958,2]
[352201360,1738995039709,-501.48933018,0.00010958,2]
[352201361,1738995039718,-500.0,0.00010958,2]
[352201362,1738995039728,-500.0,0.00010958,2]
[352201363,1738995039738,-500.0,0.00010958,2]
[352201364,1738995039747,-500.0,0.00010958,2]
[352201365,1738995039756,-500.0,0.00010958,2]
[352201366,1738995039765,-500.0,0.00010958,2]
[352201367,1738995039774,-6.09864367,0.00010958,2]
[352201368,1738995039793,-493.90135633,0.00010958,2]
[352201369,1738995039802,-500.0,0.00010958,2]
[352201370,1738995039812,-56.09864368,0.00010958,2]
[352201371,1738995039823,-444.550214,0.00010958,2]
[352201372,1738995039832,-500.0,0.00010958,2]
[352201373,1738995039842,-500.0,0.00010958,2]
[352201374,1738995039851,-500.0,0.00010958,2]
[352201375,1738995039861,-500.0,0.00010958,2]
[352201376,1738995039870,-500.0,0.00010958,2]
[352201377,1738995039880,-500.0,0.00010958,2]
[352201378,1738995039890,-500.0,0.00010958,2]
[352201379,1738995039900,-500.0,0.00010958,2]
[352201380,1738995039909,-500.0,0.00010958,2]
[352201381,1738995039919,-500.0,0.00010958,2]
[352201382,1738995039930,-503.98600084,0.00010958,2]
[352201383,1738995039941,-500.0,0.00010958,2]
[352201384,1738995039951,-500.0,0.00010958,2]
[352201385,1738995039960,-500.0,0.00010958,2]
[352201386,1738995039969,-500.0,0.00010958,2]
[352201387,1738995039978,-500.0,0.00010958,2]
[352201388,1738995039987,-500.0,0.00010958,2]
[352201389,1738995039996,-500.0,0.00010958,2]
[352201390,1738995040006,-500.0,0.00010958,2]
[352201391,1738995040015,-500.0,0.00010958,2]
[352201392,1738995040025,-500.76199603,0.00010958,2]
[352201393,1738995040035,-500.0,0.00010958,2]
[352201394,1738995040045,-500.0,0.00010958,2]
[352201395,1738995040055,-500.0,0.00010958,2]
[352201396,1738995040064,-500.0,0.00010958,2]
[352201397,1738995040073,-515.7952176,0.00010958,2]
[352201398,1738995040082,-959.54,0.00010958,2]
[352201399,1738995040091,-500.0,0.00010958,2]
[352201400,1738995040100,-500.0,0.00010958,2]
[352201401,1738995040110,-500.0,0.00010958,2]
[352201402,1738995040120,-500.0,0.00010958,2]
[352201403,1738995040129,-500.0,0.00010958,2]
[352201404,1738995040139,-500.0,0.00010958,2]
[352201405,1738995040149,-500.0,0.00010958,2]
[352201406,1738995040159,-501.9465053,0.00010958,2]
[352201407,1738995040168,-500.0,0.00010958,2]
[352201408,1738995040178,-500.0,0.00010958,2]
[352201409,1738995040187,-500.0,0.00010958,2]
[352201410,1738995040197,-500.0,0.00010958,2]
[352201411,1738995040207,-500.0,0.00010958,2]
[352201412,1738995040216,-522.07999047,0.00010958,2]
[352201413,1738995040226,-500.0,0.00010958,2]
[352201415,1738995040236,-500.60683009,0.00010958,2]
[352201416,1738995040246,-500.0,0.00010958,2]
[352201417,1738995040255,-500.0,0.00010958,2]
[352201418,1738995040265,-500.0,0.00010958,2]
[352201419,1738995040274,-312.40296877,0.00010958,2]
[352201420,1738995040284,-500.60980057,0.00010958,2]
[352201421,1738995040293,-500.0,0.00010958,2]
[352201423,1738995040302,-500.0,0.00010958,2]
[352201425,1738995040311,-500.0,0.00010958,2]
[352201426,1738995040324,-500.0,0.00010958,2]
[352201427,1738995040333,-500.0,0.00010958,2]
[352201428,1738995040344,-500.0,0.00010958,2]
[352201429,1738995040354,-500.63750474,0.00010958,2]
[352201430,1738995040363,-500.0,0.00010958,2]
[352201431,1738995040373,-500.0,0.00010958,2]
[352201432,1738995040382,-500.0,0.00010958,2]
[352201433,1738995040391,-500.0,0.00010958,2]
[352201434,1738995040400,-300.0,0.00010958,2]
[352201435,1738995040410,-500.0,0.00010958,2]
[352201436,1738995040419,-500.0,0.00010958,2]